[Event "Early-Titled-Tuesday-Blitz-January-23-2024"]
[Site "Chess.com"]
[Date "2024.01.23"]
[Round "7"]
[White "karenzc"]
[Black "LangesNasenhaar"]
[Result "0-1"]
[WhiteElo "2199"]
[BlackElo "2420"]
[TimeControl "180+1"]
[EndTime "9:15:54 PST"]
[Termination "LangesNasenhaar won by checkmate"]

1. e4 {[%clk 0:03:00.9]} 1... g6 {[%clk 0:03:00]} 2. Nf3 {[%clk 0:03:01.7]} 2...
Bg7 {[%clk 0:03:00.5]} 3. Nc3 {[%clk 0:03:01.9]} 3... c6 {[%clk 0:03:00.7]} 4.
d4 {[%clk 0:03:02.2]} 4... d5 {[%clk 0:03:01.3]} 5. e5 {[%clk 0:03:02.3]} 5...
f6 {[%clk 0:03:00.8]} 6. Bd3 {[%clk 0:03:02.1]} 6... Bg4 {[%clk 0:03:00.3]} 7.
Bf4 {[%clk 0:03:00.3]} 7... Bxf3 {[%clk 0:02:58.1]} 8. Qxf3 {[%clk 0:03:00.2]}
8... Nh6 {[%clk 0:02:48]} 9. O-O-O {[%clk 0:02:57]} 9... O-O {[%clk 0:02:45.2]}
10. Rhe1 {[%clk 0:02:52]} 10... fxe5 {[%clk 0:02:38.6]} 11. dxe5 {[%clk
0:02:51.7]} 11... e6 {[%clk 0:02:28.5]} 12. Qe3 {[%clk 0:02:50.3]} 12... Nf5
{[%clk 0:02:27.4]} 13. Qd2 {[%clk 0:02:49.1]} 13... Nd7 {[%clk 0:02:18]} 14. Ne2
{[%clk 0:02:46.4]} 14... Qb6 {[%clk 0:02:06.3]} 15. g4 {[%clk 0:02:40.5]} 15...
Nh4 {[%clk 0:02:00.6]} 16. Nd4 {[%clk 0:02:39.3]} 16... Qxd4 {[%clk 0:01:43.8]}
17. Be3 {[%clk 0:02:37.2]} 17... Qa4 {[%clk 0:01:27.6]} 18. Kb1 {[%clk 0:02:36]}
18... Nf3 {[%clk 0:01:27]} 19. Qc3 {[%clk 0:02:35.6]} 19... Nxe1 {[%clk
0:01:22.1]} 20. Rxe1 {[%clk 0:02:35.9]} 20... Bxe5 {[%clk 0:01:14]} 21. Qd2
{[%clk 0:02:32]} 21... Bg7 {[%clk 0:01:11]} 22. f4 {[%clk 0:02:21.8]} 22... e5
{[%clk 0:00:59.9]} 23. fxe5 {[%clk 0:02:19.6]} 23... Nxe5 {[%clk 0:00:59]} 24.
h3 {[%clk 0:02:19.4]} 24... Nxd3 {[%clk 0:00:56.9]} 25. Qxd3 {[%clk 0:02:18.8]}
25... Rae8 {[%clk 0:00:52.4]} 26. Rc1 {[%clk 0:02:13.7]} 26... Qe4 {[%clk
0:00:51.7]} 27. Qxe4 {[%clk 0:02:11.9]} 27... Rxe4 {[%clk 0:00:51.2]} 28. Bxa7
{[%clk 0:02:11.8]} 28... Rfe8 {[%clk 0:00:49.1]} 29. a4 {[%clk 0:02:09.8]} 29...
Re1 {[%clk 0:00:48.6]} 30. Rxe1 {[%clk 0:02:09.6]} 30... Rxe1+ {[%clk 0:00:48]}
31. Ka2 {[%clk 0:02:10]} 31... Rh1 {[%clk 0:00:47.3]} 32. b4 {[%clk 0:02:06]}
32... Rxh3 {[%clk 0:00:46.3]} 33. a5 {[%clk 0:02:02.4]} 33... Rg3 {[%clk
0:00:44.8]} 34. Bc5 {[%clk 0:02:01.3]} 34... Rxg4 {[%clk 0:00:43.9]} 35. Kb3
{[%clk 0:02:00.4]} 35... h5 {[%clk 0:00:43.5]} 36. Bd6 {[%clk 0:01:55.6]} 36...
h4 {[%clk 0:00:42.6]} 37. Ka4 {[%clk 0:01:54.8]} 37... Kf7 {[%clk 0:00:42.3]}
38. Kb3 {[%clk 0:01:54.5]} 38... Ke6 {[%clk 0:00:42.1]} 39. Bc5 {[%clk
0:01:50.1]} 39... h3 {[%clk 0:00:41.6]} 40. Ka4 {[%clk 0:01:44.6]} 40... h2
{[%clk 0:00:41.2]} 41. Kb3 {[%clk 0:01:41.9]} 41... h1=Q {[%clk 0:00:40.4]} 42.
Ka4 {[%clk 0:01:41.1]} 42... Qb1 {[%clk 0:00:38.7]} 43. a6 {[%clk 0:01:39.3]}
43... Qa2# {[%clk 0:00:33.8]} 0-1

[Event "Early-Titled-Tuesday-Blitz-January-23-2024"]
[Site "Chess.com"]
[Date "2024.01.23"]
[Round "7"]
[White "Akylbek2021"]
[Black "kingofthenil"]
[Result "0-1"]
[WhiteElo "2283"]
[BlackElo "2683"]
[TimeControl "180+1"]
[EndTime "9:15:58 PST"]
[Termination "kingofthenil won on time"]

1. d4 {[%clk 0:03:00.9]} 1... d6 {[%clk 0:03:00.3]} 2. Nf3 {[%clk 0:03:00.1]}
2... g6 {[%clk 0:02:58.9]} 3. e4 {[%clk 0:02:58.8]} 3... Bg7 {[%clk 0:02:58.2]}
4. Nc3 {[%clk 0:02:58.6]} 4... e5 {[%clk 0:02:57.9]} 5. dxe5 {[%clk 0:02:56.3]}
5... dxe5 {[%clk 0:02:58.2]} 6. Qxd8+ {[%clk 0:02:56.9]} 6... Kxd8 {[%clk
0:02:58.8]} 7. Bc4 {[%clk 0:02:54.5]} 7... f6 {[%clk 0:02:59]} 8. Be3 {[%clk
0:02:53.4]} 8... c6 {[%clk 0:02:58.4]} 9. O-O-O+ {[%clk 0:02:53.6]} 9... Kc7
{[%clk 0:02:58.8]} 10. a4 {[%clk 0:02:50.6]} 10... Nd7 {[%clk 0:02:57.6]} 11.
Rhg1 {[%clk 0:02:41.4]} 11... Bh6 {[%clk 0:02:56]} 12. Bxh6 {[%clk 0:02:34.4]}
12... Nxh6 {[%clk 0:02:56.9]} 13. g4 {[%clk 0:02:33.3]} 13... Nb6 {[%clk
0:02:57]} 14. g5 {[%clk 0:02:07.8]} 14... Nxc4 {[%clk 0:02:56]} 15. gxh6 {[%clk
0:02:08.1]} 15... Be6 {[%clk 0:02:45.7]} 16. b3 {[%clk 0:02:01.3]} 16... Nd6
{[%clk 0:02:45.8]} 17. h4 {[%clk 0:01:55.6]} 17... Nf7 {[%clk 0:02:45.9]} 18. h5
{[%clk 0:01:50]} 18... g5 {[%clk 0:02:45.7]} 19. a5 {[%clk 0:01:25.9]} 19...
Nxh6 {[%clk 0:02:36.9]} 20. Na4 {[%clk 0:01:26.2]} 20... b6 {[%clk 0:02:37.5]}
21. Ne1 {[%clk 0:01:10.7]} 21... c5 {[%clk 0:02:24.6]} 22. Kb2 {[%clk
0:01:07.3]} 22... Nf7 {[%clk 0:02:21.3]} 23. f3 {[%clk 0:01:06.3]} 23... Nd6
{[%clk 0:02:19.9]} 24. Nd3 {[%clk 0:01:04.2]} 24... h6 {[%clk 0:02:15]} 25. c4
{[%clk 0:00:47.2]} 25... Nb7 {[%clk 0:02:13.4]} 26. axb6+ {[%clk 0:00:45.3]}
26... axb6 {[%clk 0:02:14.3]} 27. Nc3 {[%clk 0:00:41.7]} 27... Rad8 {[%clk
0:02:11.3]} 28. Nb5+ {[%clk 0:00:36.3]} 28... Kc6 {[%clk 0:02:11.8]} 29. Kc3
{[%clk 0:00:36.7]} 29... Na5 {[%clk 0:02:11.4]} 30. b4 {[%clk 0:00:25.4]} 30...
Nxc4 {[%clk 0:02:10.7]} 31. Na7+ {[%clk 0:00:08.3]} 31... Kb7 {[%clk 0:02:11.1]}
32. Ra1 {[%clk 0:00:08.6]} 32... cxb4+ {[%clk 0:02:00.9]} 33. Nxb4 {[%clk
0:00:09.5]} 33... Na5 {[%clk 0:02:01.8]} 34. Nb5 {[%clk 0:00:08.5]} 34... Rc8+
{[%clk 0:02:02.3]} 35. Kb2 {[%clk 0:00:07.8]} 35... Rhd8 {[%clk 0:02:03.2]} 36.
Rgc1 {[%clk 0:00:03.9]} 36... Rd2+ {[%clk 0:02:03]} 37. Rc2 {[%clk 0:00:02.9]}
37... Nc4+ {[%clk 0:02:01.6]} 38. Kc3 {[%clk 0:00:02]} 38... Rxc2+ {[%clk
0:02:02]} 39. Kxc2 {[%clk 0:00:02.4]} 39... Na3+ {[%clk 0:02:02]} 40. Kb2 {[%clk
0:00:02.1]} 40... Nxb5 {[%clk 0:02:02.9]} 0-1

[Event "Early-Titled-Tuesday-Blitz-January-23-2024"]
[Site "Chess.com"]
[Date "2024.01.23"]
[Round "7"]
[White "Chernobay_Artem"]
[Black "vovachesss"]
[Result "0-1"]
[WhiteElo "2618"]
[BlackElo "2843"]
[TimeControl "180+1"]
[EndTime "9:16:02 PST"]
[Termination "vovachesss won by resignation"]

1. d4 {[%clk 0:03:00.9]} 1... d5 {[%clk 0:02:59.1]} 2. c4 {[%clk 0:03:01.8]}
2... c6 {[%clk 0:02:59.5]} 3. Nf3 {[%clk 0:03:01.3]} 3... Nf6 {[%clk 0:03:00.1]}
4. Nc3 {[%clk 0:03:01.2]} 4... dxc4 {[%clk 0:03:00.3]} 5. a4 {[%clk 0:03:01]}
5... Bg4 {[%clk 0:02:58.8]} 6. e3 {[%clk 0:02:50.4]} 6... Nbd7 {[%clk
0:02:54.8]} 7. Bxc4 {[%clk 0:02:49.5]} 7... e6 {[%clk 0:02:47.7]} 8. O-O {[%clk
0:02:49.2]} 8... Bb4 {[%clk 0:02:47.8]} 9. h3 {[%clk 0:02:37.1]} 9... Bh5 {[%clk
0:02:44]} 10. Qe2 {[%clk 0:02:35.6]} 10... e5 {[%clk 0:02:24.8]} 11. g4 {[%clk
0:02:15.1]} 11... Nxg4 {[%clk 0:02:24.2]} 12. hxg4 {[%clk 0:02:15.7]} 12... Bxg4
{[%clk 0:02:24.5]} 13. Ne4 {[%clk 0:02:07.7]} 13... f5 {[%clk 0:02:10.3]} 14.
Be6 {[%clk 0:00:59.1]} 14... Qe7 {[%clk 0:01:41.5]} 15. d5 {[%clk 0:00:38.4]}
15... Nf8 {[%clk 0:01:17.4]} 16. Neg5 {[%clk 0:00:34]} 16... Nxe6 {[%clk
0:01:14.5]} 17. Nxe6 {[%clk 0:00:28.7]} 17... e4 {[%clk 0:01:03]} 0-1

[Event "Early-Titled-Tuesday-Blitz-January-23-2024"]
[Site "Chess.com"]
[Date "2024.01.23"]
[Round "7"]
[White "LastHeroJr"]
[Black "Crazy_girl99"]
[Result "0-1"]
[WhiteElo "2458"]
[BlackElo "2613"]
[TimeControl "180+1"]
[EndTime "9:16:04 PST"]
[Termination "Crazy_girl99 won by resignation"]

1. e4 {[%clk 0:02:47.7]} 1... e5 {[%clk 0:02:59.3]} 2. Nc3 {[%clk 0:02:48.6]}
2... Nc6 {[%clk 0:02:58.3]} 3. Nf3 {[%clk 0:02:48.1]} 3... Nf6 {[%clk
0:02:58.4]} 4. Bb5 {[%clk 0:02:47.3]} 4... Bb4 {[%clk 0:02:57.4]} 5. d3 {[%clk
0:02:47.6]} 5... d6 {[%clk 0:02:56.3]} 6. h3 {[%clk 0:02:48]} 6... O-O {[%clk
0:02:54.3]} 7. O-O {[%clk 0:02:48.1]} 7... Bxc3 {[%clk 0:02:54.1]} 8. bxc3
{[%clk 0:02:47.1]} 8... Ne7 {[%clk 0:02:54.8]} 9. Ba4 {[%clk 0:02:43.9]} 9...
Ng6 {[%clk 0:02:54.6]} 10. Re1 {[%clk 0:02:42.9]} 10... c6 {[%clk 0:02:52.9]}
11. Bb3 {[%clk 0:02:42.3]} 11... h6 {[%clk 0:02:50.7]} 12. d4 {[%clk 0:02:41.7]}
12... Re8 {[%clk 0:02:50.1]} 13. Ba3 {[%clk 0:02:39.9]} 13... Be6 {[%clk
0:02:33.7]} 14. Nh2 {[%clk 0:02:37.2]} 14... Qd7 {[%clk 0:02:25]} 15. Nf1 {[%clk
0:02:36.9]} 15... Rad8 {[%clk 0:02:23.7]} 16. Ne3 {[%clk 0:02:36.6]} 16... Nf4
{[%clk 0:02:20.6]} 17. d5 {[%clk 0:02:35.2]} 17... cxd5 {[%clk 0:02:19.3]} 18.
exd5 {[%clk 0:02:36.1]} 18... Bxh3 {[%clk 0:02:05]} 19. gxh3 {[%clk 0:02:35.6]}
19... Qxh3 {[%clk 0:02:05.7]} 20. Bc4 {[%clk 0:02:32.1]} 20... Ne4 {[%clk
0:02:01.6]} 21. Bf1 {[%clk 0:02:29.3]} 21... Qh4 {[%clk 0:01:58.4]} 22. Qf3
{[%clk 0:02:28.6]} 22... Nxc3 {[%clk 0:01:53]} 23. Nf5 {[%clk 0:02:28.6]} 23...
Qg5+ {[%clk 0:01:50.7]} 24. Ng3 {[%clk 0:02:26]} 24... Ncxd5 {[%clk 0:01:45.7]}
25. Rad1 {[%clk 0:02:24.9]} 25... Nf6 {[%clk 0:01:25.8]} 26. Rxd6 {[%clk
0:02:23.3]} 26... Rxd6 {[%clk 0:01:20.4]} 27. Bxd6 {[%clk 0:02:24.2]} 27... h5
{[%clk 0:01:18.6]} 28. Bg2 {[%clk 0:02:21.3]} 28... h4 {[%clk 0:01:17]} 29. Ne4
{[%clk 0:02:21.1]} 29... Nxe4 {[%clk 0:01:17.1]} 30. Rxe4 {[%clk 0:02:22]} 30...
h3 {[%clk 0:01:15.6]} 31. Qg3 {[%clk 0:02:03.9]} 31... Qxg3 {[%clk 0:00:59]} 32.
fxg3 {[%clk 0:02:04.8]} 32... Nxg2 {[%clk 0:00:59.2]} 33. Kh2 {[%clk 0:01:57.9]}
33... f5 {[%clk 0:00:58.6]} 34. Re2 {[%clk 0:01:52.3]} 34... f4 {[%clk
0:00:57.1]} 35. gxf4 {[%clk 0:01:48.8]} 35... Nxf4 {[%clk 0:00:56.8]} 36. Rxe5
{[%clk 0:01:48.9]} 36... Rxe5 {[%clk 0:00:45.6]} 37. Bxe5 {[%clk 0:01:49.8]}
37... Nd5 {[%clk 0:00:45.9]} 38. a3 {[%clk 0:01:42.5]} 38... Ne3 {[%clk
0:00:42.9]} 39. Bd4 {[%clk 0:01:38.5]} 39... Nxc2 {[%clk 0:00:42.3]} 40. Bxa7
{[%clk 0:01:38.7]} 40... Nxa3 {[%clk 0:00:43]} 41. Kxh3 {[%clk 0:01:39.6]} 41...
b5 {[%clk 0:00:42.6]} 42. Kg4 {[%clk 0:01:38.7]} 42... b4 {[%clk 0:00:42.1]} 43.
Bc5 {[%clk 0:01:36.8]} 43... Nc2 {[%clk 0:00:42.2]} 44. Bd6 {[%clk 0:01:33.6]}
44... b3 {[%clk 0:00:41.1]} 45. Be5 {[%clk 0:01:33.5]} 45... Ne3+ {[%clk
0:00:41.4]} 46. Kg5 {[%clk 0:01:31.4]} 46... Nc4 {[%clk 0:00:42]} 0-1

[Event "Early-Titled-Tuesday-Blitz-January-23-2024"]
[Site "Chess.com"]
[Date "2024.01.23"]
[Round "7"]
[White "isaak2009"]
[Black "Sargsyan_Shant"]
[Result "0-1"]
[WhiteElo "2651"]
[BlackElo "2908"]
[TimeControl "180+1"]
[EndTime "9:16:14 PST"]
[Termination "Sargsyan_Shant won on time"]

1. e4 {[%clk 0:02:56.1]} 1... g6 {[%clk 0:03:00.2]} 2. d4 {[%clk 0:02:55.7]}
2... Nf6 {[%clk 0:03:00.8]} 3. Nc3 {[%clk 0:02:56.4]} 3... d5 {[%clk 0:03:01]}
4. e5 {[%clk 0:02:55.2]} 4... Ne4 {[%clk 0:03:01.4]} 5. Bd3 {[%clk 0:02:48.5]}
5... Nxc3 {[%clk 0:03:02]} 6. bxc3 {[%clk 0:02:49.4]} 6... c5 {[%clk 0:03:02.9]}
7. h4 {[%clk 0:02:45.9]} 7... Nc6 {[%clk 0:03:02.6]} 8. Be3 {[%clk 0:02:42.8]}
8... h5 {[%clk 0:03:01.6]} 9. Nh3 {[%clk 0:02:39.7]} 9... Bg4 {[%clk 0:03:00.3]}
10. f3 {[%clk 0:02:37.7]} 10... Bxh3 {[%clk 0:03:00.3]} 11. Rxh3 {[%clk
0:02:38.6]} 11... e6 {[%clk 0:02:58]} 12. Rb1 {[%clk 0:02:38.7]} 12... Rb8
{[%clk 0:02:54.3]} 13. g3 {[%clk 0:02:33.3]} 13... Qa5 {[%clk 0:02:54.4]} 14.
Bd2 {[%clk 0:02:08.2]} 14... Qa3 {[%clk 0:02:52.1]} 15. Bb5 {[%clk 0:02:00.9]}
15... Kd7 {[%clk 0:02:47.2]} 16. Rb3 {[%clk 0:01:36.9]} 16... Qxa2 {[%clk
0:02:43.7]} 17. c4 {[%clk 0:01:29.3]} 17... cxd4 {[%clk 0:02:37.8]} 18. cxd5
{[%clk 0:01:27.2]} 18... exd5 {[%clk 0:02:38.1]} 19. Bf4 {[%clk 0:01:14.6]}
19... Bc5 {[%clk 0:02:34.6]} 20. e6+ {[%clk 0:01:12.4]} 20... fxe6 {[%clk
0:02:35.5]} 21. Bxb8 {[%clk 0:01:12.5]} 21... Rxb8 {[%clk 0:02:36.4]} 22. Rh2
{[%clk 0:01:07.3]} 22... Rf8 {[%clk 0:02:14.7]} 23. f4 {[%clk 0:01:07.4]} 23...
Qa5+ {[%clk 0:02:08.7]} 24. Kf1 {[%clk 0:00:56.4]} 24... e5 {[%clk 0:02:07.7]}
25. Bxc6+ {[%clk 0:00:52.7]} 25... Kxc6 {[%clk 0:02:07.4]} 26. Re2 {[%clk
0:00:31.1]} 26... e4 {[%clk 0:02:07.6]} 27. Kg2 {[%clk 0:00:31]} 27... Qa4
{[%clk 0:02:02.9]} 28. Qb1 {[%clk 0:00:17.1]} 28... b5 {[%clk 0:02:03.2]} 29.
Re1 {[%clk 0:00:16.6]} 29... a5 {[%clk 0:02:01.1]} 30. Qb2 {[%clk 0:00:16.4]}
30... Qc4 {[%clk 0:02:00.3]} 31. Qa1 {[%clk 0:00:06.5]} 31... a4 {[%clk
0:02:00.3]} 32. Rbb1 {[%clk 0:00:07.1]} 32... a3 {[%clk 0:01:56.2]} 33. Rbd1
{[%clk 0:00:03.4]} 33... b4 {[%clk 0:01:56.2]} 34. Kh3 {[%clk 0:00:02.9]} 34...
Kb5 {[%clk 0:01:54.2]} 35. Qb1 {[%clk 0:00:03]} 35... Ra8 {[%clk 0:01:53.8]} 36.
Rf1 {[%clk 0:00:01.3]} 36... a2 {[%clk 0:01:54.1]} 37. Qb2 {[%clk 0:00:01.6]}
37... Qc3 {[%clk 0:01:54.6]} 38. Qxc3 {[%clk 0:00:01.6]} 38... bxc3 {[%clk
0:01:55.1]} 39. Ra1 {[%clk 0:00:01.5]} 39... Kc4 {[%clk 0:01:55.8]} 0-1

[Event "Early-Titled-Tuesday-Blitz-January-23-2024"]
[Site "Chess.com"]
[Date "2024.01.23"]
[Round "7"]
[White "FMCASTE"]
[Black "Timerkhanov"]
[Result "1-0"]
[WhiteElo "2511"]
[BlackElo "2665"]
[TimeControl "180+1"]
[EndTime "9:16:14 PST"]
[Termination "FMCASTE won by resignation"]

1. d4 {[%clk 0:03:00.9]} 1... d5 {[%clk 0:02:58.1]} 2. Nf3 {[%clk 0:03:01.8]}
2... Nf6 {[%clk 0:02:57.1]} 3. c4 {[%clk 0:03:02.7]} 3... c6 {[%clk 0:02:56.6]}
4. Nc3 {[%clk 0:03:03.1]} 4... dxc4 {[%clk 0:02:56.4]} 5. g3 {[%clk 0:03:01.4]}
5... Bf5 {[%clk 0:02:54.8]} 6. Bg2 {[%clk 0:03:01.6]} 6... e6 {[%clk 0:02:54.2]}
7. O-O {[%clk 0:03:02.1]} 7... Nbd7 {[%clk 0:02:53.9]} 8. Re1 {[%clk 0:03:02.3]}
8... Ne4 {[%clk 0:02:52.9]} 9. a4 {[%clk 0:02:59.1]} 9... Bb4 {[%clk 0:02:51]}
10. Bd2 {[%clk 0:02:55.9]} 10... a5 {[%clk 0:02:48.8]} 11. Rc1 {[%clk
0:02:50.7]} 11... O-O {[%clk 0:02:47.6]} 12. Nxe4 {[%clk 0:02:50.2]} 12... Bxe4
{[%clk 0:02:47.3]} 13. Bxb4 {[%clk 0:02:50.4]} 13... axb4 {[%clk 0:02:46.9]} 14.
Rxc4 {[%clk 0:02:51]} 14... Qa5 {[%clk 0:02:20]} 15. b3 {[%clk 0:02:50.9]} 15...
Rfd8 {[%clk 0:02:15.1]} 16. Nd2 {[%clk 0:02:36.9]} 16... Bxg2 {[%clk 0:02:10.1]}
17. Kxg2 {[%clk 0:02:37.8]} 17... Nb6 {[%clk 0:02:09.2]} 18. Rc5 {[%clk
0:02:37.5]} 18... Qa7 {[%clk 0:02:06.3]} 19. e3 {[%clk 0:02:38.1]} 19... Nd5
{[%clk 0:02:03.7]} 20. Qf3 {[%clk 0:02:32.5]} 20... e5 {[%clk 0:01:58.8]} 21.
Ne4 {[%clk 0:02:22.8]} 21... exd4 {[%clk 0:01:56.1]} 22. exd4 {[%clk 0:02:23.7]}
22... h6 {[%clk 0:01:51.3]} 23. h4 {[%clk 0:02:15.2]} 23... Qb8 {[%clk
0:01:44.7]} 24. h5 {[%clk 0:02:08.1]} 24... Re8 {[%clk 0:01:44.3]} 25. Rcc1
{[%clk 0:02:06.1]} 25... Qc7 {[%clk 0:01:41.8]} 26. Nc5 {[%clk 0:02:02.7]} 26...
Nc3 {[%clk 0:01:33.2]} 27. Nd3 {[%clk 0:01:57.1]} 27... Qd6 {[%clk 0:01:25.3]}
28. Rxe8+ {[%clk 0:01:54.8]} 28... Rxe8 {[%clk 0:01:22.7]} 29. Nxb4 {[%clk
0:01:51.2]} 29... Ne2 {[%clk 0:01:21.1]} 30. Re1 {[%clk 0:01:36.8]} 30... Nf4+
{[%clk 0:01:17.6]} 31. Qxf4 {[%clk 0:01:36]} 31... Qd7 {[%clk 0:00:51.2]} 32.
Rxe8+ {[%clk 0:01:33.6]} 32... Qxe8 {[%clk 0:00:52.1]} 33. Qe5 {[%clk
0:01:32.6]} 33... Qd7 {[%clk 0:00:51.2]} 34. d5 {[%clk 0:01:31.2]} 34... Qg4
{[%clk 0:00:50.9]} 35. dxc6 {[%clk 0:01:16.3]} 35... bxc6 {[%clk 0:00:51]} 36.
Nxc6 {[%clk 0:01:14]} 36... Qd1 {[%clk 0:00:51.5]} 37. Qe8+ {[%clk 0:01:11.6]}
37... Kh7 {[%clk 0:00:51.4]} 38. Qe4+ {[%clk 0:01:12]} 38... g6 {[%clk 0:00:50]}
39. hxg6+ {[%clk 0:01:10.7]} 39... fxg6 {[%clk 0:00:50.9]} 40. Qe7+ {[%clk
0:01:10.1]} 40... Kh8 {[%clk 0:00:50.7]} 41. Qd8+ {[%clk 0:01:09.7]} 1-0

[Event "Early-Titled-Tuesday-Blitz-January-23-2024"]
[Site "Chess.com"]
[Date "2024.01.23"]
[Round "7"]
[White "Martial2008"]
[Black "Savagelittlemole"]
[Result "1-0"]
[WhiteElo "2657"]
[BlackElo "2449"]
[TimeControl "180+1"]
[EndTime "9:16:21 PST"]
[Termination "Martial2008 won by resignation"]

1. d4 {[%clk 0:03:00.9]} 1... Nf6 {[%clk 0:02:57.4]} 2. Nf3 {[%clk 0:03:01.8]}
2... c5 {[%clk 0:02:57.1]} 3. d5 {[%clk 0:03:01.5]} 3... e6 {[%clk 0:02:57.4]}
4. Nc3 {[%clk 0:03:00.8]} 4... exd5 {[%clk 0:02:55.4]} 5. Nxd5 {[%clk
0:03:01.7]} 5... Nc6 {[%clk 0:02:51.2]} 6. Bg5 {[%clk 0:02:55.9]} 6... Be7
{[%clk 0:02:49]} 7. Bxf6 {[%clk 0:02:56]} 7... Bxf6 {[%clk 0:02:47.9]} 8. c3
{[%clk 0:02:56.3]} 8... O-O {[%clk 0:02:47.1]} 9. e3 {[%clk 0:02:55.7]} 9... d6
{[%clk 0:02:44.8]} 10. Bc4 {[%clk 0:02:55.2]} 10... Ne5 {[%clk 0:02:40.8]} 11.
Nxe5 {[%clk 0:02:53.8]} 11... Bxe5 {[%clk 0:02:41.7]} 12. f4 {[%clk 0:02:50.1]}
12... Bf6 {[%clk 0:02:39.7]} 13. O-O {[%clk 0:02:48.6]} 13... g6 {[%clk
0:02:35.5]} 14. Qf3 {[%clk 0:02:46.4]} 14... Bg7 {[%clk 0:02:32.6]} 15. Rad1
{[%clk 0:02:43.3]} 15... Kh8 {[%clk 0:02:29.7]} 16. g4 {[%clk 0:02:38.8]} 16...
Qh4 {[%clk 0:02:22.6]} 17. h3 {[%clk 0:02:26.4]} 17... h5 {[%clk 0:02:20.4]} 18.
Be2 {[%clk 0:02:22.2]} 18... Bd7 {[%clk 0:02:09.7]} 19. Kg2 {[%clk 0:02:19.5]}
19... Rae8 {[%clk 0:01:52.2]} 20. gxh5 {[%clk 0:02:10.8]} 20... Bf5 {[%clk
0:01:47.8]} 21. Bd3 {[%clk 0:02:07.2]} 21... Bxd3 {[%clk 0:01:40.4]} 22. Rxd3
{[%clk 0:02:08.1]} 22... gxh5 {[%clk 0:01:40.6]} 23. Qg3 {[%clk 0:02:04.7]}
23... Bf6 {[%clk 0:01:36.7]} 24. Qxh4 {[%clk 0:02:02.2]} 24... Bxh4 {[%clk
0:01:37.6]} 25. Kf3 {[%clk 0:02:01]} 25... f5 {[%clk 0:01:30.3]} 26. Rg1 {[%clk
0:01:55.5]} 26... Rg8 {[%clk 0:01:26.3]} 27. Rdd1 {[%clk 0:01:55.4]} 27... Rxg1
{[%clk 0:01:15.9]} 28. Rxg1 {[%clk 0:01:56.3]} 28... Rg8 {[%clk 0:01:16]} 29.
Rxg8+ {[%clk 0:01:56.8]} 29... Kxg8 {[%clk 0:01:16.9]} 30. e4 {[%clk 0:01:50]}
30... fxe4+ {[%clk 0:01:14.1]} 31. Kxe4 {[%clk 0:01:50.9]} 31... Kf7 {[%clk
0:01:13.9]} 32. Kf5 {[%clk 0:01:50.4]} 32... Be1 {[%clk 0:00:54.5]} 33. c4
{[%clk 0:01:49.8]} 33... a6 {[%clk 0:00:47.3]} 34. a4 {[%clk 0:01:49.5]} 34...
Bh4 {[%clk 0:00:45.8]} 35. b3 {[%clk 0:01:48.1]} 35... Bd8 {[%clk 0:00:44]} 36.
Nc3 {[%clk 0:01:47.8]} 36... Bf6 {[%clk 0:00:36.1]} 37. Ne4 {[%clk 0:01:47.1]}
37... Be7 {[%clk 0:00:36.1]} 38. Ng3 {[%clk 0:01:47.3]} 38... h4 {[%clk
0:00:28.8]} 39. Ne4 {[%clk 0:01:46.9]} 39... Bf8 {[%clk 0:00:19.8]} 40. Ng5+
{[%clk 0:01:45]} 40... Ke7 {[%clk 0:00:20.1]} 41. Kg6 {[%clk 0:01:44.3]} 41...
Kd7 {[%clk 0:00:16.1]} 42. Ne4 {[%clk 0:01:44]} 42... Be7 {[%clk 0:00:16.1]} 43.
f5 {[%clk 0:01:41.6]} 43... Kc6 {[%clk 0:00:15.9]} 44. Nc3 {[%clk 0:01:41.9]}
44... b5 {[%clk 0:00:13.9]} 45. axb5+ {[%clk 0:01:39.9]} 45... axb5 {[%clk
0:00:14.8]} 46. cxb5+ {[%clk 0:01:40.6]} 46... Kb6 {[%clk 0:00:15.3]} 47. Nd5+
{[%clk 0:01:40.8]} 47... Kxb5 {[%clk 0:00:15]} 48. Nxe7 {[%clk 0:01:41.4]} 1-0

[Event "Early-Titled-Tuesday-Blitz-January-23-2024"]
[Site "Chess.com"]
[Date "2024.01.23"]
[Round "7"]
[White "Harry_Rakkel"]
[Black "Orphanator2009"]
[Result "1-0"]
[WhiteElo "2657"]
[BlackElo "2470"]
[TimeControl "180+1"]
[EndTime "9:16:22 PST"]
[Termination "Harry_Rakkel won by resignation"]

1. e4 {[%clk 0:03:00.9]} 1... c5 {[%clk 0:02:59]} 2. Nf3 {[%clk 0:03:00.1]} 2...
d6 {[%clk 0:02:59.2]} 3. d4 {[%clk 0:03:00]} 3... cxd4 {[%clk 0:03:00.1]} 4.
Nxd4 {[%clk 0:03:00.1]} 4... Nf6 {[%clk 0:03:00.6]} 5. Nc3 {[%clk 0:03:00]} 5...
Nc6 {[%clk 0:03:00.9]} 6. Bg5 {[%clk 0:02:58.9]} 6... e6 {[%clk 0:03:00.8]} 7.
Qd2 {[%clk 0:02:58.5]} 7... a6 {[%clk 0:03:00.9]} 8. O-O-O {[%clk 0:02:56.3]}
8... Bd7 {[%clk 0:03:00.4]} 9. f3 {[%clk 0:02:55.2]} 9... Nxd4 {[%clk 0:03:00]}
10. Qxd4 {[%clk 0:02:54.4]} 10... Be7 {[%clk 0:03:00.1]} 11. h4 {[%clk
0:02:53.9]} 11... Qc7 {[%clk 0:02:54.1]} 12. Kb1 {[%clk 0:02:53.4]} 12... b5
{[%clk 0:02:48.4]} 13. Qd2 {[%clk 0:02:50.9]} 13... b4 {[%clk 0:02:21.7]} 14.
Ne2 {[%clk 0:02:50.4]} 14... a5 {[%clk 0:02:22.2]} 15. Nd4 {[%clk 0:02:50.4]}
15... h6 {[%clk 0:02:08.6]} 16. Be3 {[%clk 0:02:43.2]} 16... Rb8 {[%clk
0:01:48.9]} 17. g4 {[%clk 0:02:38.5]} 17... g6 {[%clk 0:01:16.4]} 18. Bxh6
{[%clk 0:02:24.4]} 18... e5 {[%clk 0:01:15.8]} 19. Ne2 {[%clk 0:02:23.8]} 19...
Be6 {[%clk 0:01:14.2]} 20. Bg7 {[%clk 0:02:13.6]} 20... Rh7 {[%clk 0:01:11.2]}
21. Bxf6 {[%clk 0:02:13.2]} 21... Bxf6 {[%clk 0:01:12.1]} 22. h5 {[%clk
0:02:06.6]} 22... gxh5 {[%clk 0:01:09]} 23. Rxh5 {[%clk 0:02:05.9]} 23... Rxh5
{[%clk 0:01:04.6]} 24. gxh5 {[%clk 0:02:06.8]} 24... Ke7 {[%clk 0:01:05.3]} 25.
Ng3 {[%clk 0:01:49.5]} 25... Rg8 {[%clk 0:01:00.7]} 26. Nf5+ {[%clk 0:01:48.3]}
26... Bxf5 {[%clk 0:01:00.9]} 27. exf5 {[%clk 0:01:49.2]} 27... Bg5 {[%clk
0:01:01.8]} 28. Qd5 {[%clk 0:01:47.7]} 28... Rh8 {[%clk 0:00:53.9]} 29. Bc4
{[%clk 0:01:45.4]} 29... Kf8 {[%clk 0:00:35.7]} 30. Rh1 {[%clk 0:01:25.8]} 30...
Rh6 {[%clk 0:00:35.8]} 31. b3 {[%clk 0:01:21.7]} 31... Be3 {[%clk 0:00:33.5]}
32. a4 {[%clk 0:01:14.4]} 32... bxa3 {[%clk 0:00:32.7]} 33. Ka2 {[%clk
0:01:14.4]} 33... Bc5 {[%clk 0:00:33]} 34. Rh4 {[%clk 0:01:10.4]} 34... Qe7
{[%clk 0:00:32.4]} 35. Rg4 {[%clk 0:01:08]} 35... Rxh5 {[%clk 0:00:30.9]} 36.
Qa8+ {[%clk 0:01:07.3]} 36... Qe8 {[%clk 0:00:24.5]} 37. Rg8+ {[%clk 0:01:07.2]}
1-0